Cogmind - Beta 13 *** ADVENTURER MODE // 2024.04.04 @ 18:09:56 Player: Voidling Result: Self-destructed Performance ------------- Evolutions (2) 1000 Regions Visited (6) 1200 Robots Destroyed (26) 130 Value Destroyed (869) 869 Prototype IDs (0) 0 Alien Tech Used (0) 0 Bonus (165) 165 TOTAL SCORE: 3364 Bonus ------- Follower Combat Kills 165 Cogmind --------- Core Integrity 425/550 Matter 226/300 Energy 440/440 System Corruption 0% Temperature Warning (317) Movement Treading (158) Location -8/Storage Parts ------- > --- POWER (2) -------- Improved Ion Engine Deuterium Engine > --- PROPULSION (3) --- Light Treads Armored Treads Advanced Treads > --- UTILITY (3) ------ Medium Storage Unit Improved Signal Interpreter Advanced Targeting Computer > --- WEAPON (3) ------- Beam Rifle Heavy Assault Rifle Light Cannon > --- INVENTORY (10) --- Flight Unit Heat Sink Trap Scanner Sensor Array Improved Terrain Scanner Advanced Targeting Computer Hardened Light Armor Plating Hardened Light Armor Plating High-powered Tractor Beam Spread Laser Peak State ------------ > --- POWER ------------ Improved Ion Engine Deuterium Engine > --- PROPULSION ------- Light Treads Armored Treads Advanced Treads > --- UTILITY ---------- Medium Storage Unit Improved Signal Interpreter Advanced Targeting Computer > --- WEAPON ----------- Beam Rifle Beam Rifle Light Cannon > --- INVENTORY -------- Flight Unit Heat Sink Improved Heat Sink Trap Scanner Sensor Array Improved Terrain Scanner Advanced Targeting Computer High-powered Tractor Beam Spread Laser Light Assault Rifle [Rating: 26] Favorites ----------- Power Light Ion Engine Engine Light Ion Engine Propulsion Wheel Treads Armored Treads Leg Aluminum Leg Wheel Wheel Utility Medium Storage Unit Device Sensor Array Storage Medium Storage Unit Processor Improved Signal Interpreter Protection Light Armor Plating Weapon Light Assault Rifle Energy Gun Beam Rifle Ballistic Gun Light Assault Rifle Ballistic Cannon Light Cannon Build | -11 -10 -10 -10 -9 -8 -8 ------- Run | Yrd Mat Min Exi Min Mat Sto Slots Evolved 4 | . . . . . 4 . Power 1 | . . . . . 1 . Propulsion 1 | . . . . . 1 . Utility 1 | . . . . . 1 . Weapon 1 | . . . . . 1 . Parts Attached 30 | 5 2 . . 1 15 7 Power 5 | 1 . . . . 2 2 Engine 5 | 1 . . . . 2 2 Core . | . . . . . . . Reactor . | . . . . . . . Propulsion 8 | 2 . . . . 3 3 Treads 3 | . . . . . . 3 Leg 3 | . . . . . 3 . Wheel 2 | 2 . . . . . . Hover . | . . . . . . . Flight . | . . . . . . . Utility 6 | . 2 . . . 4 . Device 1 | . . . . . 1 . Storage 1 | . 1 . . . . . Processor 2 | . . . . . 2 . Hackware . | . . . . . . . Protection 2 | . 1 . . . 1 . Artifact . | . . . . . . . Weapon 11 | 2 . . . 1 6 2 Energy Gun 4 | . . . . 1 3 . Energy Cannon . | . . . . . . . Ballistic Gun 6 | 2 . . . . 3 1 Ballistic Cannon 1 | . . . . . . 1 Launcher . | . . . . . . . Special Weapon . | . . . . . . . Impact Weapon . | . . . . . . . Slashing Weapon . | . . . . . . . Piercing Weapon . | . . . . . . . Special Melee Weapon . | . . . . . . . Unidentified Prototypes . | . . . . . . . Parts Lost 6 | . . . . . 6 . Power 2 | . . . . . 2 . Propulsion 2 | . . . . . 2 . Utility 1 | . . . . . 1 . Weapon 1 | . . . . . 1 . Highest Loss Streak 5 | . . . . . 5 . To Critical Strikes . | . . . . . . . Average Slot Usage (%) 86 | . 81 100 100 100 78 90 Engine 11 | . 14 14 14 14 9 11 Treads 1 | . . . . . . 10 Leg 11 | . . . . . 18 13 Wheel 10 | . 28 28 28 28 1 . Storage 10 | . 8 14 14 14 9 9 Processor 6 | . . . . . 6 18 Protection 6 | . 2 14 14 14 5 . Energy Gun 6 | . . . . 13 5 15 Ballistic Gun 19 | . 28 28 28 14 20 6 Naked Turns . | . . . . . . . Heaviest Build 35 | 6 19 19 19 21 28 35 Greatest Support 62 | 20 20 20 20 20 42 62 Greatest Overweight (x) 4 | . . . . 1 4 1 Average Overweight (x) . | . . . . 1 . . Largest Inventory Capacity 10 | 5 10 10 10 10 10 10 Average Capacity 9 | 5 8 10 10 10 10 10 Most Carried 10 | 3 3 3 3 5 10 10 Average Carried 6 | 1 2 3 3 3 8 9 Final Capacity 10 | 5 10 10 10 10 10 10 Final Carried 10 | 2 3 3 3 5 10 10 Class Distribution -------------------- 42% | Mutant 27% | Gunner 22% | Scavenger-Tank 6% | Scavenger-Gunner Dominant Class ---------------- Mutant | -10/Materials Mutant | -10/Mines Mutant | -10/Exiles Mutant | -9/Mines Scavenger-Tank | -8/Materials Gunner | -8/Storage Resources | -11 -10 -10 -10 -9 -8 -8 ----------- Run | Yrd Mat Min Exi Min Mat Sto Matter Collected 634 | 258 24 . . 65 226 61 Remotely . | . . . . . . . Salvage Created 980 | 46 28 . . 107 523 276 Parts 51 | 3 3 . . 8 25 12 Haulers Intercepted . | . . . . . . . Recyclers Shooed . | . . . . . . . Parts Field Recycled . | . . . . . . . Retrieved Matter . | . . . . . . . Parts Self-Destructed . | . . . . . . . Prevented . | . . . . . . . Kills | -11 -10 -10 -10 -9 -8 -8 ------- Run | Yrd Mat Min Exi Min Mat Sto Combat Hostiles Destroyed 27 | 1 . . . 7 11 8 Guns 24 | 1 . . . 7 11 5 Cannons 2 | . . . . . . 2 Classes Destroyed 8 | 1 1 . . 3 3 . Watcher 2 | . 1 . . . . 1 Swarmer 8 | . . . . 3 1 4 Grunt 9 | 1 . . . . 5 3 Brawler 1 | . . . . . 1 . Duelist 1 | . . . . 1 . . Sentry 4 | . . . . . 3 1 Hunter 1 | . . . . . 1 . Assembled 3 | . . . . 3 . . Best Kill Streak 5 | 1 1 . . 2 5 3 Combat Bots Only 5 | 1 . . . 2 5 3 Max Kills in Single Turn 3 | 1 1 . . 1 2 3 Gunslinging 2 | . . . . . 1 2 Exploded . | . . . . . . . Melee . | . . . . . . . Uniques/NPCs Destroyed . | . . . . . . . Combat | -11 -10 -10 -10 -9 -8 -8 -------- Run | Yrd Mat Min Exi Min Mat Sto Hostile Shots Fired 197 | 2 1 . . 28 105 61 Missed 66 | 1 1 . . 12 33 19 Damage Taken 1337 | 8 . . . 166 736 427 Core 173 | . . . . 48 46 79 Absorbed by Shields . | . . . . . . . Ignored by Resistances 396 | 2 . . . 49 217 128 Core Remaining (%) 90 | 100 . . . 80 . . Volleys Fired 79 | 2 1 . . 17 36 23 Largest 3 | 2 2 . . 2 3 3 Hottest 147 | 40 40 . . 85 132 147 Shots Fired 207 | 4 2 . . 34 100 67 Gun 197 | 4 2 . . 34 100 57 Cannon 10 | . . . . . . 10 Launcher . | . . . . . . . Special . | . . . . . . . Kinetic 134 | 4 2 . . 21 80 27 Thermal 73 | . . . . 13 20 40 Explosive . | . . . . . . . Electromagnetic . | . . . . . . . Robot Hit Streak 27 | 2 3 . . 9 27 14 Robot Miss Streak 3 | 2 . . . 2 3 2 Penetration Max . | . . . . . . . Secondary Targets 10 | . . . . . 7 3 Max Gunslinging Chain 2 | . . . . . 1 2 Shots Hit Robots 160 | 2 1 . . 24 80 53 Core Hits 61 | 2 1 . . 11 30 17 Critical Kills . | . . . . . . . Critical Parts Destroyed 1 | . . . . . 1 . Critical Strikes 7 | . . . . . 3 4 Burn 6 | . . . . . 2 4 Destroy 1 | . . . . . 1 . Melee Attacks . | . . . . . . . Impact . | . . . . . . . Slashing . | . . . . . . . Piercing . | . . . . . . . Sneak Attacks . | . . . . . . . Combat Hostiles . | . . . . . . . Follow-up Attacks . | . . . . . . . Damage Inflicted 1840 | 23 12 . . 294 807 704 Guns 1694 | 23 12 . . 294 807 558 Cannons 146 | . . . . . . 146 Explosions . | . . . . . . . Melee . | . . . . . . . Ramming . | . . . . . . . Kinetic 1033 | 23 12 . . 172 545 281 Thermal 807 | . . . . 122 262 423 Explosive . | . . . . . . . Electromagnetic . | . . . . . . . Impact . | . . . . . . . Slashing . | . . . . . . . Piercing . | . . . . . . . Highest Corruption . | . . . . . . . Average Corruption . | . . . . . . . Corruption Purged . | . . . . . . . Corruption Blocked . | . . . . . . . Overload Shots . | . . . . . . . Overflow Damage . | . . . . . . . Projectiles . | . . . . . . . Explosions . | . . . . . . . Melee . | . . . . . . . Knockbacks . | . . . . . . . Impact . | . . . . . . . Kinetic . | . . . . . . . Secondary . | . . . . . . . Self-Inflicted Damage . | . . . . . . . Shots . | . . . . . . . Rammed . | . . . . . . . Targets Rammed . | . . . . . . . Kicked . | . . . . . . . Crushed . | . . . . . . . Highest Temperature 339 | 6 . . . 165 334 339 Average Temperature 120 | 6 . . . 62 114 162 Received Heat Transfer 664 | 6 . . . 64 333 261 Effects 2 | . . . . . 1 1 Interference 1 | . . . . . . 1 Damage (minor) 1 | . . . . . 1 . Siege Activations . | . . . . . . . Robots Corrupted . | . . . . . . . Combat Hostiles . | . . . . . . . Parts Fried . | . . . . . . . Impact Corruptions . | . . . . . . . Robots Melted 1 | . . . . . . 1 Combat Hostiles 1 | . . . . . . 1 Parts Melted 6 | . . . . . 1 5 Heat Transferred 2420 | . . . . 296 755 1369 Parts Sabotaged . | . . . . . . . Parts Stolen . | . . . . . . . Parts Stripped . | . . . . . . . Power Chain Reactions . | . . . . . . . Alert | -11 -10 -10 -10 -9 -8 -8 ------- Run | Yrd Mat Min Exi Min Mat Sto Peak Influence 390 | 20 33 10 . 171 305 390 Initial 109 | . 11 10 . . 56 109 Average 164 | 10 21 10 . 112 199 248 Maximum Alert Level 1 | . . . . . 1 1 Low Security (%) 56 | 100 100 100 . 100 36 42 Level 1 43 | . . . . . 64 57 Level 2 . | . . . . . . . Level 3 . | . . . . . . . Level 4 . | . . . . . . . Level 5 . | . . . . . . . High Security . | . . . . . . . Max Security . | . . . . . . . Squads Dispatched 6 | . 1 . . 1 2 2 Investigation 2 | . 1 . . . 1 . Extermination . | . . . . . . . Reinforcement 2 | . . . . . . 2 Assault 1 | . . . . 1 . . Garrison 1 | . . . . . 1 . Intercept . | . . . . . . . Searches Triggered . | . . . . . . . Construction Impeded . | . . . . . . . Haulers Reinforced . | . . . . . . . Active Scanning Responses . | . . . . . . . Cargo Convoy Interrupts . | . . . . . . . Stealth | -11 -10 -10 -10 -9 -8 -8 --------- Run | Yrd Mat Min Exi Min Mat Sto Distress Signals 3 | . . . . . 2 1 Communications Jammed . | . . . . . . . Distress Signals . | . . . . . . . Times Spotted 55 | 1 7 . . 11 21 15 Peak Tracking Total 6 | 1 5 . . 3 6 5 Tactical Retreats 5 | . 1 . . 2 1 1 Traps | -11 -10 -10 -10 -9 -8 -8 ------- Run | Yrd Mat Min Exi Min Mat Sto Traps Triggered . | . . . . . . . Indirectly . | . . . . . . . Trap Hack Attempts . | . . . . . . . Triggered . | . . . . . . . Disarmed . | . . . . . . . Reprogrammed . | . . . . . . . Reused . | . . . . . . . Traps Extracted . | . . . . . . . Installed . | . . . . . . . Triggered . | . . . . . . . Machines | -11 -10 -10 -10 -9 -8 -8 ---------- Run | Yrd Mat Min Exi Min Mat Sto Machines Disabled 2 | . . . . . 1 1 Max in Single Turn 1 | . . . . . . 1 Machines Repaired . | . . . . . . . Machines Dismantled . | . . . . . . . Machines Sabotaged . | . . . . . . . Overloaded Fab Kills . | . . . . . . . Hacking | -11 -10 -10 -10 -9 -8 -8 --------- Run | Yrd Mat Min Exi Min Mat Sto Machines Accessed 2 | . . . . . 1 1 Terminals 1 | . . . . . . 1 Fabricators . | . . . . . . . Repair Stations . | . . . . . . . Recycling Units . | . . . . . . . Scanalyzers . | . . . . . . . Garrison Access 1 | . . . . . 1 . Total Hacks 4 | . . . . . 3 1 Successful 1 | . . . . . . 1 Failed 3 | . . . . . 3 . Catastrophic 1 | . . . . . 1 . Database Lockouts . | . . . . . . . Manual . | . . . . . . . Terminals 1 | . . . . . . 1 Fabricators . | . . . . . . . Repair Stations . | . . . . . . . Recycling Units . | . . . . . . . Scanalyzers . | . . . . . . . Garrison Access 3 | . . . . . 3 . Terminal Hacks 1 | . . . . . . 1 Open Door 1 | . . . . . . 1 Fabricator Hacks . | . . . . . . . Repair Station Hacks . | . . . . . . . Recycling Unit Hacks . | . . . . . . . Scanalyzer . | . . . . . . . Garrison Access Hacks . | . . . . . . . Unauthorized Hacks . | . . . . . . . Terminals . | . . . . . . . Fabricators . | . . . . . . . Repair Stations . | . . . . . . . Recycling Units . | . . . . . . . Scanalyzers . | . . . . . . . Garrison Access . | . . . . . . . Data Cores Recovered . | . . . . . . . Used . | . . . . . . . Hacking Detections 1 | . . . . . 1 . Full Trace Events 1 | . . . . . 1 . Feedback Events . | . . . . . . . Feedback Blocked . | . . . . . . . Robot Schematics Acquired . | . . . . . . . Robots Built . | . . . . . . . Authchips . | . . . . . . . Time . | . . . . . . . Total Robot Build Rating . | . . . . . . . Part Schematics Acquired . | . . . . . . . Parts Built . | . . . . . . . Authchips . | . . . . . . . Time . | . . . . . . . Total Part Build Rating . | . . . . . . . Parts Repaired . | . . . . . . . Time . | . . . . . . . Parts Recycled . | . . . . . . . Recycled Matter . | . . . . . . . Retrieved Matter . | . . . . . . . Retrieved Components . | . . . . . . . Parts Scanalyzed . | . . . . . . . Part Schematics Acquired . | . . . . . . . Parts Damaged . | . . . . . . . Bothacking | -11 -10 -10 -10 -9 -8 -8 ------------ Run | Yrd Mat Min Exi Min Mat Sto Used RIF Installer . | . . . . . . . Robots Hacked . | . . . . . . . Non-combat . | . . . . . . . Combat . | . . . . . . . Robot Hacks Applied . | . . . . . . . Relay Couplers Released . | . . . . . . . Fabnet Peak Effective % . | . . . . . . . Robots Rewired . | . . . . . . . Allies Hacked . | . . . . . . . Hacks Repelled . | . . . . . . . Allies | -11 -10 -10 -10 -9 -8 -8 -------- Run | Yrd Mat Min Exi Min Mat Sto Total Allies 2 | . . 1 . 1 . . Largest Group 1 | . . 1 1 1 1 . Highest-Rated Group 31 | . . 31 31 31 31 . Highest-Rated Ally 31 | . . 31 31 31 31 . Total Orders . | . . . . . . . Ally Attacks 46 | . . . . 7 39 . Total Damage 531 | . . . . 108 423 . Kills 7 | . . . . 2 5 . Allies Corrupted . | . . . . . . . Allies Melted . | . . . . . . . Intel | -11 -10 -10 -10 -9 -8 -8 ------- Run | Yrd Mat Min Exi Min Mat Sto Robot Analysis Total . | . . . . . . . Derelict Logs Recovered . | . . . . . . . Drone Launches . | . . . . . . . Drone Recoveries . | . . . . . . . Exploration | -11 -10 -10 -10 -9 -8 -8 ------------- Run | Yrd Mat Min Exi Min Mat Sto Turns Passed 1733 | 112 136 28 203 189 775 290 Spaces Moved 1344 | 126 161 35 254 143 488 137 Core 28 | 22 . . . . 6 . Treads 52 | . . . . . . 52 Legs 514 | . . . . . 429 85 Wheels 750 | 104 161 35 254 143 53 . Hover . | . . . . . . . Flight . | . . . . . . . Fastest Speed 50 | 50 80 80 80 95 95 123 Average Speed 105 | 74 80 80 80 95 131 136 Slowest Speed 250 | 80 80 80 80 95 250 250 Overloaded Moves . | . . . . . . . Propulsion Burnouts . | . . . . . . . Robots Hopped . | . . . . . . . Cave-ins Triggered . | . . . . . . . Exploration Rate (%) 27 | 7 32 8 53 29 38 24 Regions Visited 6 Branch Regions 4 Pre-discovered Areas . | . . . . . . . Known Exits Taken 1 | . . . . . 1 . Unknown Exits Taken 5 | 1 1 1 1 1 . . Scrap Searched . | . . . . . . . Spaces Dug . | . . . . . . . Terrain Destroyed . | . . . . . . . Melee . | . . . . . . . Projectile . | . . . . . . . AOE . | . . . . . . . Terrain Rammed . | . . . . . . . Walls Destroyed . | . . . . . . . Machines Disabled . | . . . . . . . Actions | -11 -10 -10 -10 -9 -8 -8 --------- Run | Yrd Mat Min Exi Min Mat Sto Total 1503 | 139 166 34 253 162 557 192 Wait 11 | . . . . . . 11 Move 1338 | 125 160 34 253 142 487 137 Hop . | . . . . . . . Pick Up 32 | 7 3 . . 2 15 5 Fast Attach 7 | . . . . . 2 5 Attach 18 | 5 2 . . . 10 1 Detach 1 | . . . . . 1 . Swap 5 | . . . . 1 3 1 Drop 12 | . . . . . 3 9 Fire 79 | 2 1 . . 17 36 23 Melee . | . . . . . . . Ram . | . . . . . . . Kick . | . . . . . . . Crush . | . . . . . . . Escape Stasis . | . . . . . . . Rewire . | . . . . . . . Trap . | . . . . . . . Miscellaneous . | . . . . . . . Route ------- -11/Scrapyard -10/Materials (discovered 2 exits: [*Mat] / [*Min]) -10/Mines -10/Exiles (discovered 2 exits: [*Min x2]) -9/Mines -8/Materials -8/Storage History --------- Turn | Location | Event 2 | -11/Scrapyard | Met Revision 17 45 | -11/Scrapyard | Discovered new exit (range 8) 113 | -11/Scrapyard | Entered Materials 165 | -10/Materials | Met 8R-AWN 221 | -10/Materials | Discovered new exit (range 7) 230 | -10/Materials | Discovered new exit (range 10) 249 | -10/Materials | Entered Mines 250 | -10/Mines | Followed 8R-AWN into the Mines 252 | -10/Mines | Received a Mining Laser from a helpful Derelict 272 | -10/Mines | Discovered new exit (range 5) 277 | -10/Mines | Entered Exiles 277 | -10/Exiles | Accompanied by 1 ally 302 | -10/Exiles | Build established: Mutant 324 | -10/Exiles | Discovered new exit (range 15) 334 | -10/Exiles | Welcomed by 8R-AWN 353 | -10/Exiles | Met EX-HEX 398 | -10/Exiles | Met EX-DEC 460 | -10/Exiles | Discovered new exit (range 14) 480 | -10/Exiles | Entered Mines 480 | -9/Mines | Accompanied by 1 ally 481 | -9/Mines | Assembled infested the area 650 | -9/Mines | Met a Derelict testing a Signal Generator 653 | -9/Mines | Discovered new exit (range 10) 669 | -9/Mines | Entered Materials 669 | -8/Materials | Accompanied by 1 ally 669 | -8/Materials | Evolved 4 slots: Power x1, Propulsion x1, Utility x1, Weapon x1 669 | -8/Materials | Discovered new exit (range 7) 794 | -8/Materials | Lost 5 parts (1p2n1u1w) 1143 | -8/Materials | Build established: Scavenger-Tank 1175 | -8/Materials | Garrison activated, responded to threat 1443 | -8/Materials | Identified exit to Storage 1444 | -8/Materials | Entered Storage 1563 | -8/Storage | Build established: Gunner 1734 | -8/Storage | Self-destructed Last Messages --------------- Y-45 Defender destroyed. K-01 Serf collects debris. Acquired Lgt. Treads. K-01 Serf collects debris. Acquired Imp. Ion Engine. Dropped Beam Rifle. K-01 Serf collects debris. Acquired 48 matter. Acquired Hvy. Assault Rifle. K-01 Serf collects debris. Connecting with Door Terminal... >>Open(Door) Sealed Heavy Doors opened. Dropped Lgt. Assault Rifle. Acquired Hrd. Light Armor Plating. Dropped Imp. Heat Sink. Acquired Hrd. Light Armor Plating. K-01 Serf collects debris. Critical hit (Burn: +37). G-47 Trooper destroyed. Map ----- +----------------------------------------------------+ | | | | | | | | | ?????????????????????????????????????????????????? | | ?????????????????????????????????????????????????? | | ?????????????#????#####???????#######????????????? | | ????????????# ### ######## ##???????????? | | ????????????? T + """ "#???????????? | | #+###?????????????# % [# """ T#???????????? | | #?????????????# # """ "#???????????? | | """ #?????????????# %+ #????????????? | | ??" #????????###??# # #???????????? | | ??" #???????? #?## ##+#########???????????? | | """ #???????? #?#" # #????????????? | | #????????" #?#T%% % # ! = #????????????? | | #????????" #?# # = #????????????? | | #????????" #### + *! = #????????????? | | #???????"" +% % % ###########????????????? | | #####??????"" ##### #??????????????????????? | | ??????# """" #???# #########??????????????? | | ??????# #???# # # !!#??????????????? | | ###########+######## # !#??????????????? | | g ^ # [!!#??????????????? | | !g^ + #??????????????? | | %%%* @##T# !!!#??????????????? | | #+#########+################## !!!#??????????????? | | #????????????????????????######??????????????? | | #????????????????????????????????????????????? | | " "##????????????????????????????????????????????? | | ??????????????????????????????????????????????? | | ??????????????????????????????????????????????? | | ]]??????????????????????????????????????????????? | | ]]??????????????????????????????????????????????? | | ####?????????????????????????????????????????????? | | ?????????????????????????????????????????????????? | | ?????????????????????????????????????????????????? | | ?????????????????????????????????????????????????? | | ?????????????????????????????????????????????????? | | ?????????????????????????????????????????????????? | | ?????????????????????????????????????????????????? | | ?????????????????????????????????????????????????? | | ?????????????????????????????????????????????????? | | ?????????????????????????????????????????????????? | | ?????????????????????????????????????????????????? | | ?????????????????????????????????????????????????? | | ?????????????????????????????????????????????????? | | ?????????????????????????????????????????????????? | | ?????????????????????????????????????????????????? | | ?????????????????????????????????????????????????? | +----------------------------------------------------+ Best States ------------- Heat Dissipation 31 Energy Generation 21 Energy Capacity 440 Matter Stores 300 Matter Capacity 300 Sight Range 16 Robot Scan Range 14 Terrain Scan Density 10 Armor Coverage 150 Resistance: KI 20 Resistance: TH 20 Resistance: EX 20 Resistance: EM 20 Resistance: I 20 Resistance: S 20 Resistance: P 20 Evasion (%) 55 Targeting Accuracy 8 Recoil Reduction 3 Offensive Hacking 10 Item Schematics ----------------- None Robot Schematics ------------------ None Fabricated ------------ Nothing Alien Tech Used ----------------- None Achievements -------------- Gunslinger I Survived The Infestation It's Just You One Hack Too Far Tourist Challenges ------------ None Game ------ Seed DrainedHardcellLink Manual? 0 Play Time 00:33:05 Cumulative 0.7 hours Start 2024.04.02 @ 21:08:54 End 2024.04.04 @ 18:09:56 Sessions 3 Manual Loads 0 Difficulty Adventurer Special Mode None Game No. 2 Rogue 1 Adventurer 1 Explorer 0 Win Type - Total 0 Types 0/0/0/0/0/0/0/0/0 Lore% 0 Gallery% 3 Achievement% 3 Wizard Run 0 Options --------- Layout 1 ASCII 0 Keyboard 0 Movement Arrows Keybinds 0 Fullscreen 1 Font 24/Smallcaps Map View 50x35 Zoom Use 0% Tactical HUD 0 Map Filters NONE Filters NONE Steam 1 RUN: 582e678a-adbd-4889-a918-820370a07673